Cogmind - Beta 13 @@@ ROGUE MODE // 2024.04.13 @ 05:10:56 Player: TheedMan Result: Destroyed by G-34 Mercenary with Small Laser Performance ------------- Evolutions (0) 0 Regions Visited (1) 200 Robots Destroyed (14) 70 Value Destroyed (358) 358 Prototype IDs (0) 0 Alien Tech Used (0) 0 Bonus (0) 0 TOTAL SCORE: 628 Bonus ------- None Cogmind --------- Core Integrity 0/250 Matter 300/300 Energy 88/100 System Corruption 0% Temperature Hot (298) Movement Core (150) Ox2 Location -10/Materials Parts ------- > --- POWER (1) -------- (None) > --- PROPULSION (2) --- (None) > --- UTILITY (2) ------ Small Storage Unit Signal Interpreter > --- WEAPON (2) ------- Medium Laser > --- INVENTORY (8) ---- Light Treads Light Treads Medium Battery (150) Small Matter Pod (50) Sensor Array Core Shielding Peak State ------------ > --- POWER ------------ Ion Engine > --- PROPULSION ------- Aluminum Leg Aluminum Leg > --- UTILITY ---------- Small Storage Unit Core Shielding > --- WEAPON ----------- Medium Laser Medium Laser > --- INVENTORY -------- Light Ion Engine Light Treads Light Treads Medium Battery Light Assault Rifle [Rating: 7] Favorites ----------- Power Ion Engine Engine Ion Engine Propulsion Aluminum Leg Leg Aluminum Leg Utility Small Storage Unit Storage Small Storage Unit Processor Signal Interpreter Protection Core Shielding Weapon Medium Laser Energy Gun Medium Laser Ballistic Gun Light Assault Rifle Build | -11 -10 ------- Run | Yrd Mat Slots Evolved . | . . Power . | . . Propulsion . | . . Utility . | . . Weapon . | . . Parts Attached 12 | 6 6 Power 2 | 1 1 Engine 2 | 1 1 Core . | . . Reactor . | . . Propulsion 2 | 2 . Treads . | . . Leg 2 | 2 . Wheel . | . . Hover . | . . Flight . | . . Utility 4 | 1 3 Device . | . . Storage 1 | 1 . Processor 2 | . 2 Hackware . | . . Protection 1 | . 1 Artifact . | . . Weapon 4 | 2 2 Energy Gun 3 | 2 1 Energy Cannon . | . . Ballistic Gun 1 | . 1 Ballistic Cannon . | . . Launcher . | . . Special Weapon . | . . Impact Weapon . | . . Slashing Weapon . | . . Piercing Weapon . | . . Special Melee Weapon . | . . Unidentified Prototypes . | . . Parts Lost 5 | . 5 Power 2 | . 2 Propulsion 2 | . 2 Utility . | . . Weapon 1 | . 1 Highest Loss Streak 4 | . 4 To Critical Strikes . | . . Average Slot Usage (%) 91 | . 91 Engine 9 | . 9 Leg 26 | . 26 Storage 14 | . 14 Processor 9 | . 9 Protection 3 | . 3 Energy Gun 24 | . 24 Ballistic Gun 2 | . 2 Naked Turns . | . . Heaviest Build 15 | 14 15 Greatest Support 20 | 20 20 Greatest Overweight (x) . | . . Average Overweight (x) . | . . Largest Inventory Capacity 8 | 8 8 Average Capacity 7 | 6 8 Most Carried 8 | 4 8 Average Carried 6 | 2 6 Final Capacity 8 | 8 8 Final Carried 6 | 4 6 Class Distribution -------------------- 100% | Mutant Dominant Class ---------------- Mutant | -10/Materials Resources | -11 -10 ----------- Run | Yrd Mat Matter Collected 371 | 232 139 Remotely . | . . Salvage Created 373 | . 373 Parts 16 | . 16 Haulers Intercepted . | . . Recyclers Shooed . | . . Parts Field Recycled . | . . Retrieved Matter . | . . Parts Self-Destructed . | . . Prevented . | . . Kills | -11 -10 ------- Run | Yrd Mat Combat Hostiles Destroyed 10 | . 10 Melee 1 | . 1 Guns 8 | . 8 Classes Destroyed 4 | . 4 Operator 1 | . 1 Watcher 3 | . 3 Swarmer 3 | . 3 Grunt 7 | . 7 Best Kill Streak 4 | . 4 Combat Bots Only 3 | . 3 Max Kills in Single Turn 1 | . 1 Gunslinging . | . . Exploded . | . . Melee 1 | . 1 Uniques/NPCs Destroyed . | . . Combat | -11 -10 -------- Run | Yrd Mat Hostile Shots Fired 104 | . 104 Missed 33 | . 33 Damage Taken 780 | . 780 Core 260 | . 260 Absorbed by Shields . | . . Redirected to Shielding 4 | . 4 Core Remaining (%) 100 | 100 . Volleys Fired 48 | . 48 Largest 2 | . 2 Hottest 100 | . 100 Shots Fired 78 | . 78 Gun 78 | . 78 Cannon . | . . Launcher . | . . Special . | . . Kinetic 12 | . 12 Thermal 66 | . 66 Explosive . | . . Electromagnetic . | . . Robot Hit Streak 4 | . 4 Robot Miss Streak 3 | . 3 Penetration Max . | . . Secondary Targets . | . . Shots Hit Robots 45 | . 45 Core Hits 26 | . 26 Critical Kills 1 | . 1 Critical Parts Destroyed . | . . Critical Strikes 6 | . 6 Burn 5 | . 5 Destroy 1 | . 1 Melee Attacks . | . . Impact . | . . Slashing . | . . Piercing . | . . Sneak Attacks . | . . Combat Hostiles . | . . Follow-up Attacks . | . . Damage Inflicted 645 | . 645 Guns 585 | . 585 Cannons . | . . Explosions . | . . Melee . | . . Ramming 60 | . 60 Kinetic 58 | . 58 Thermal 527 | . 527 Explosive . | . . Electromagnetic . | . . Impact . | . . Slashing . | . . Piercing . | . . Highest Corruption . | . . Average Corruption . | . . Corruption Purged . | . . Corruption Blocked . | . . Overload Shots . | . . Overflow Damage . | . . Projectiles . | . . Explosions . | . . Melee . | . . Knockbacks 1 | . 1 Impact 1 | . 1 Kinetic . | . . Secondary . | . . Self-Inflicted Damage . | . . Shots . | . . Rammed . | . . Targets Rammed 29 | . 29 Kicked 29 | . 29 Crushed . | . . Highest Temperature 460 | . 460 Average Temperature 151 | . 151 Received Heat Transfer 384 | . 384 Effects 6 | . 6 Shutdowns 2 | . 2 Energy Bleed 1 | . 1 Short Circuit 3 | . 3 Siege Activations . | . . Robots Corrupted . | . . Combat Hostiles . | . . Parts Fried . | . . Impact Corruptions . | . . Robots Melted 1 | . 1 Combat Hostiles 1 | . 1 Parts Melted 2 | . 2 Heat Transferred 1924 | . 1924 Parts Sabotaged . | . . Parts Stolen . | . . Parts Stripped . | . . Power Chain Reactions . | . . Alert | -11 -10 ------- Run | Yrd Mat Peak Influence 155 | . 155 Initial . | . . Average 63 | . 69 Maximum Alert Level . | . . Low Security (%) 100 | 100 100 Level 1 . | . . Level 2 . | . . Level 3 . | . . Level 4 . | . . Level 5 . | . . High Security . | . . Max Security . | . . Squads Dispatched 3 | . 3 Investigation 1 | . 1 Extermination . | . . Reinforcement 2 | . 2 Assault . | . . Garrison . | . . Intercept . | . . Searches Triggered . | . . Construction Impeded . | . . Haulers Reinforced . | . . Active Scanning Responses . | . . Cargo Convoy Interrupts . | . . Stealth | -11 -10 --------- Run | Yrd Mat Distress Signals . | . . Communications Jammed . | . . Distress Signals . | . . Times Spotted 20 | . 20 Peak Tracking Total 4 | . 4 Tactical Retreats . | . . Traps | -11 -10 ------- Run | Yrd Mat Traps Triggered 1 | . 1 Indirectly . | . . Trap Hack Attempts . | . . Triggered . | . . Disarmed . | . . Reprogrammed . | . . Reused . | . . Traps Extracted . | . . Installed . | . . Triggered . | . . Machines | -11 -10 ---------- Run | Yrd Mat Machines Disabled . | . . Max in Single Turn . | . . Machines Repaired . | . . Machines Dismantled . | . . Machines Sabotaged . | . . Overloaded Fab Kills . | . . Hacking | -11 -10 --------- Run | Yrd Mat Machines Accessed . | . . Terminals . | . . Fabricators . | . . Repair Stations . | . . Recycling Units . | . . Scanalyzers . | . . Garrison Access . | . . Total Hacks . | . . Successful . | . . Failed . | . . Catastrophic . | . . Database Lockouts . | . . Manual . | . . Terminals . | . . Fabricators . | . . Repair Stations . | . . Recycling Units . | . . Scanalyzers . | . . Garrison Access . | . . Terminal Hacks . | . . Fabricator Hacks . | . . Repair Station Hacks . | . . Recycling Unit Hacks . | . . Scanalyzer . | . . Garrison Access Hacks . | . . Unauthorized Hacks . | . . Terminals . | . . Fabricators . | . . Repair Stations . | . . Recycling Units . | . . Scanalyzers . | . . Garrison Access . | . . Data Cores Recovered . | . . Used . | . . Hacking Detections . | . . Full Trace Events . | . . Feedback Events . | . . Feedback Blocked . | . . Robot Schematics Acquired . | . . Robots Built . | . . Authchips . | . . Time . | . . Total Robot Build Rating . | . . Part Schematics Acquired . | . . Parts Built . | . . Authchips . | . . Time . | . . Total Part Build Rating . | . . Parts Repaired . | . . Time . | . . Parts Recycled . | . . Recycled Matter . | . . Retrieved Matter . | . . Retrieved Components . | . . Parts Scanalyzed . | . . Part Schematics Acquired . | . . Parts Damaged . | . . Bothacking | -11 -10 ------------ Run | Yrd Mat Used RIF Installer . | . . Robots Hacked . | . . Non-combat . | . . Combat . | . . Robot Hacks Applied . | . . Relay Couplers Released . | . . Fabnet Peak Effective % . | . . Robots Rewired . | . . Allies Hacked . | . . Hacks Repelled . | . . Allies | -11 -10 -------- Run | Yrd Mat Total Allies . | . . Largest Group . | . . Highest-Rated Group . | . . Highest-Rated Ally . | . . Total Orders . | . . Ally Attacks . | . . Total Damage . | . . Kills . | . . Allies Corrupted . | . . Allies Melted . | . . Intel | -11 -10 ------- Run | Yrd Mat Robot Analysis Total . | . . Derelict Logs Recovered . | . . Drone Launches . | . . Drone Recoveries . | . . Exploration | -11 -10 ------------- Run | Yrd Mat Turns Passed 590 | 56 534 Spaces Moved 311 | 38 273 Core 2 | 2 . Treads . | . . Legs 309 | 36 273 Wheels . | . . Hover . | . . Flight . | . . Fastest Speed 50 | 50 120 Average Speed 119 | 116 120 Slowest Speed 120 | 120 120 Overloaded Moves . | . . Propulsion Burnouts . | . . Robots Hopped . | . . Cave-ins Triggered . | . . Exploration Rate (%) 25 | 4 47 Regions Visited 1 Branch Regions . Pre-discovered Areas . | . . Known Exits Taken . | . . Unknown Exits Taken 1 | 1 . Scrap Searched . | . . Spaces Dug . | . . Terrain Destroyed . | . . Melee . | . . Projectile . | . . AOE . | . . Terrain Rammed . | . . Walls Destroyed . | . . Machines Disabled . | . . Actions | -11 -10 --------- Run | Yrd Mat Total 444 | 47 397 Wait 32 | . 32 Move 310 | 37 273 Hop . | . . Pick Up 10 | 4 6 Fast Attach 8 | 6 2 Attach 1 | . 1 Detach . | . . Swap 3 | . 3 Drop 3 | . 3 Fire 48 | . 48 Melee . | . . Ram . | . . Kick 29 | . 29 Crush . | . . Escape Stasis . | . . Rewire . | . . Trap . | . . Miscellaneous . | . . Route ------- -11/Scrapyard -10/Materials (discovered 1 exit: *Mat) History --------- Turn | Location | Event 2 | -11/Scrapyard | Met Revision 17 6 | -11/Scrapyard | Discovered new exit (range 15) 57 | -11/Scrapyard | Entered Materials 238 | -10/Materials | Discovered new exit (range 12) 250 | -10/Materials | Identified exit to Materials 319 | -10/Materials | Build established: Mutant 546 | -10/Materials | Core integrity fell below 50% 582 | -10/Materials | Core integrity fell below 20% 591 | -10/Materials | Destroyed by G-34 Mercenary with Small Laser Last Messages --------------- U-05 Engineer lays Concrete. K-01 Serf collects debris. U-05 Engineer destroyed. K-01 Serf collects debris. R-06 Scavenger collects Terrain Scan Processor. G-47 Trooper suffers critical hit (Destroy). G-47 Trooper destroyed. K-01 Serf collects debris. R-06 Scavenger collects Welding Torch. Lgt. Assault Rifle destroyed. K-01 Serf collects debris. Destroyed Tractor Beam. Lgt. Ion Engine destroyed. K-01 Serf collects debris. Aluminum Leg destroyed. K-01 Serf collects debris. G-34 Mercenary destroyed. Overheating: Energy bleed (-12). K-01 Serf collects debris. K-01 Serf destroyed. Map ----- +----------------------------------------------------+ | | | | | | | | | | | | | | | ??????????????????????????????????????????????? | | ??????????????????????????????????????????????? | | ??????????????????????????????????????????????? | | ??????????????????????????????????????????????? | | ??????????????????????????????????????????????? | | ?????????????????????????? ???????????????????? | | ??????????????????###+####+???????????????????? | | ?????????????"???? r????????????????????? | | ?????????????? # ?? ????????????????????? | | ???????????????+ ????????????????????? | | ???????????????# """ #????????????????????? | | ???????????????# """ #????????????????????? | | ???????????????# """ #????????????????????? | | ???????????????? #????????????????????? | | ?????????????????? *%=gg #????????????????????? | | ???????????????????#% #????????????????????? | | ???????????????????# %#????????????????????? | | ???????????????????# * #????????????????????? | | ???????????????????# @%=#######??????????????? | | ???????????????????# ! T +??????????????? | | ???????????????????# % ###??????????????? | | ???????????????????#==^^^ #????????????????? | | ???????????????????#== = #????????????????? | | ???????????????????#==r m ###????????? ????? | | ???????????????##### +???????? ?????? | | ???????? #??????? ??????? | | ????????????########## ##### ####### ???????? | | ?????????????????????# #???? ????????? | | ?????????????????????# #????### ?????????? | | ????????????????????##+######## ????????? | | ??????????########### # ####????????? | | ????# /% # #???????????? | | ??????????########### # #???????????? | | ????????????????????#% + #???????????? | | ????????????????????# # #???????????? | | ????????????????????# # ############# | | ????????????????????# # %%%% | | ????????????????????# # % %%% | | ????????????????????########### %% | | ????????????????????# ! % # ##########%## | | ????????????????????# ! + %#????????#%#? | | ????????????????????# # !#????????#%#? | | ????????????????????# # #????????#%#? | +----------------------------------------------------+ Best States ------------- Heat Dissipation 25 Energy Generation 10 Energy Capacity 250 Matter Stores 300 Matter Capacity 300 Sight Range 16 Terrain Scan Density 10 Core Shielding 20 Evasion (%) 55 Item Schematics ----------------- None Robot Schematics ------------------ None Fabricated ------------ Nothing Alien Tech Used ----------------- None Achievements -------------- None Challenges ------------ None Game ------ Seed PlasmaLargeMonowheel Manual? 0 Play Time 00:13:37 Cumulative 6.2 hours Start 2024.04.13 @ 04:59:04 End 2024.04.13 @ 05:10:56 Sessions 1 Manual Loads 0 Difficulty Rogue Special Mode None Game No. 14 Rogue 14 Adventurer 0 Explorer 0 Win Type - Total 0 Types 0/0/0/0/0/0/0/0/0 Lore% 8 Gallery% 9 Achievement% 10 Wizard Run 0 Options --------- Layout 1 ASCII 0 Keyboard 0 Movement Mouse Keybinds 0 Fullscreen 1 Font 24/Smallcaps Map View 50x35 Zoom Use 0% Tactical HUD 0 Map Filters NONE Filters NONE Steam 1 RUN: 8e1683b5-8f24-42b2-b20d-45e4b9189b04